bitfinex/quotes_SOLUSD_20251030
["timestamp","ask_amount","ask_price","bid_price","bid_amount"]
[1761860752859,5.48275673,182.39,182.38,0.68]
[1761860753028,22.84769306,182.41,182.38,0.68]
[1761860754962,28.33003237,182.41,182.38,0.68]
[1761860755343,2.25569306,182.4,182.38,0.68]
[1761860755535,20.592,182.41,182.38,0.68]
[1761860755943,2.25569306,182.4,182.38,0.68]
[1761860756140,5.4819282,182.42,182.38,0.68]
[1761860756344,2.25569306,182.4,182.38,0.68]
[1761860756558,2.25569306,182.41,182.38,0.68]
[1761860756870,2.25569306,182.4,182.38,0.68]
[1761860758264,5.4822109,182.41,182.38,0.68]
[1761860758469,2.25569306,182.4,182.38,0.68]
[1761860759259,5.48185505,182.42,182.38,0.68]
[1761860759445,4.09979607,182.41,182.38,0.68]
[1761860759837,2.25569306,182.4,182.38,0.68]
[1761860760250,20.592,182.43,182.38,0.68]
[1761860760436,2.25569306,182.46,182.39,2.25569306]
[1761860760642,2.25569306,182.48,182.42,2.25569306]
[1761860760962,4.09911512,182.47,182.42,2.25569306]
[1761860761261,2.25569306,182.48,182.43,0.71]
[1761860761860,2.25569306,182.47,182.43,0.71]
[1761860762068,21.89714732,182.52,182.43,0.71]
[1761860762244,4.09493025,182.51,182.43,0.71]
[1761860762449,2.25569306,182.49,182.43,8.44719354]
[1761860762867,2.25569306,182.49,182.44,0.71]
[1761860764440,2.25569306,182.49,182.44,6.19097831]
[1761860764956,2.25569306,182.49,182.45,0.71]
[1761860765450,0.68,182.52,182.45,0.71]
[1761860765659,2.25569306,182.49,182.45,0.71]
[1761860767361,2.25569306,182.49,182.45,6.19095139]
[1761860768171,6.15910258,182.52,182.46,0.71]
[1761860768353,2.25569306,182.49,182.46,0.71]
[1761860769160,2.25569306,182.5,182.46,6.19058198]
[1761860769654,2.25569306,182.5,182.47,0.71]
[1761860769849,2.25569306,182.52,182.47,0.71]
[1761860770067,2.25569306,182.51,182.47,0.71]
[1761860770268,2.25569306,182.53,182.47,2.96569306]
[1761860770664,2.25569306,182.53,182.48,0.71]
[1761860771060,2.25569306,182.53,182.48,6.18983789]
[1761860771476,2.25569306,182.53,182.49,0.71]
[1761860777870,2.25569306,182.53,182.5,5.47827877]
[1761860778371,2.25569306,182.53,182.51,0.71]
[1761860778572,2.25569306,182.55,182.51,62.41]
[1761860778878,2.25569306,182.56,182.51,62.41]
[1761860779065,2.25569306,182.56,182.52,0.71]
[1761860779777,5.47675119,182.59,182.52,2.96569306]
[1761860779982,2.25569306,182.58,182.53,0.71]
[1761860780179,5.47675119,182.59,182.53,62.41]
[1761860780381,2.25569306,182.59,182.54,16.47220315]
[1761860780557,2.25569306,182.6,182.55,0.71]
[1761860780760,12.1287615,182.62,182.55,62.41]
[1761860780977,2.25569306,182.6,182.55,62.41]
[1761860781192,2.25569306,182.61,182.56,0.71]
[1761860781775,2.25569306,182.61,182.57,21.91904378]
[1761860782085,2.25569306,182.61,182.57,16.44169263]
[1761860782266,2.25569306,182.61,182.58,0.71]
[1761860782472,2.25569306,182.62,182.58,0.71]
[1761860783185,2.25569306,182.62,182.59,16.44169263]
[1761860783562,2.25569306,182.62,182.6,0.71]
[1761860784169,2.25569306,182.61,182.6,0.71]
[1761860784776,2.25569306,182.61,182.6,17.17949026]
[1761860786466,5.47562094,182.63,182.6,17.17949026]
[1761860786668,5.47562094,182.63,182.61,0.71]
[1761860786882,2.25569306,182.62,182.61,0.71]
[1761860787374,2.25569306,182.62,182.61,17.17949026]
[1761860793980,5.47525186,182.64,182.61,17.17949026]
[1761860794298,2.25569306,182.62,182.61,16.46949026]
[1761860794879,2.25569306,182.62,182.61,17.17949026]
[1761860795583,2.25569306,182.62,182.61,16.46949026]
[1761860795900,2.25569306,182.62,182.61,17.17949026]
[1761860796394,2.25569306,182.62,182.61,16.46949026]
[1761860800805,5.47566176,182.63,182.61,16.46949026]
[1761860801005,2.25569306,182.62,182.61,16.46949026]
[1761860801385,3.51538555,182.62,182.61,16.46949026]
[1761860802203,9.78882769,182.61,182.46,9.78882769]
[1761860802502,3.51538555,182.51,182.47,0.71]
[1761860802702,3.51538555,182.49,182.47,0.71]
[1761860803002,3.51538555,182.49,182.47,17.15433481]
[1761860803392,3.51538555,182.49,182.48,0.71]
[1761860804804,20.592,182.52,182.48,0.71]
[1761860805005,3.51538555,182.49,182.48,0.71]
[1761860805193,3.51538555,182.49,182.47,0.71]
[1761860805397,3.51538555,182.49,182.48,0.71]
[1761860806289,8.99513786,182.49,182.48,0.71]
[1761860807485,34.28912908,182.52,182.48,0.71]
[1761860807486,20.592,182.52,182.48,0.71]
[1761860807689,3.51538555,182.5,182.48,0.71]
[1761860809912,5.47975231,182.49,182.48,0.71]
[1761860810813,8.99513786,182.49,182.48,0.71]
[1761860811111,5.47975231,182.49,182.48,0.71]
[1761860811301,3.51538555,182.5,182.48,0.71]
[1761860811704,8.99501667,182.5,182.48,0.71]
[1761860813123,3.51538555,182.51,182.48,0.71]
[1761860814006,5.47945205,182.5,182.48,0.71]
[1761860814207,3.51538555,182.49,182.46,78.14433481]
[1761860814408,3.51538555,182.47,182.46,78.14433481]
[1761860814616,3.51538555,182.48,182.47,0.71]
[1761860814914,9.78882769,182.54,182.47,0.71]
[1761860815121,3.51538555,182.49,182.47,0.71]
[1761860816120,5.4800526,182.48,182.47,0.71]
[1761860816708,3.51538555,182.49,182.47,0.71]
[1761860817726,5.4800526,182.48,182.47,0.71]
[1761860819326,8.9948376,182.5,182.47,0.71]
[1761860820430,20.592,182.51,182.47,0.71]
[1761860820596,13.30421324,182.54,182.47,0.71]
[1761860820794,9.78882769,182.52,182.47,0.71]
[1761860821031,13.30421324,182.52,182.47,0.71]
[1761860821321,13.30421324,182.52,182.47,17.19034718]
[1761860821725,13.30421324,182.52,182.48,0.7]
[1761860823124,5.47915182,182.51,182.48,0.7]
[1761860823328,3.51538555,182.53,182.48,17.18034718]
[1761860823329,5.47878171,182.53,182.48,17.18034718]
[1761860823507,3.51538555,182.52,182.48,17.18034718]
[1761860823713,3.51538555,182.51,182.49,0.7]
[1761860823908,5.47878171,182.53,182.49,0.7]
[1761860823909,8.99416726,182.53,182.49,0.7]
[1761860824133,3.51538555,182.52,182.49,0.7]
[1761860824525,5.47878171,182.53,182.49,0.7]
[1761860824710,8.99416726,182.53,182.49,0.7]
[1761860824915,9.78882769,182.54,182.49,0.7]
[1761860825313,3.51538555,182.53,182.49,0.7]
[1761860825521,3.51538555,182.52,182.49,0.7]
[1761860826921,28.96278509,182.54,182.49,0.7]
[1761860826922,8.99403143,182.53,182.49,0.7]
[1761860827916,5.47864588,182.53,182.49,0.7]
[1761860828238,3.51538555,182.53,182.49,0.7]
[1761860828750,3.51538555,182.54,182.49,0.7]
[1761860830037,20.592,182.56,182.49,0.7]
[1761860830222,8.38581481,182.62,182.49,6.17962812]
[1761860830417,13.86614929,182.61,182.5,0.7]
[1761860830717,8.99134987,182.62,182.54,3.51538555]
[1761860830917,8.99134987,182.62,182.52,20.592]
[1761860830918,8.99134987,182.62,182.55,4.21538555]
[1761860831230,8.99099359,182.63,182.56,4.21538555]
[1761860831421,8.99099359,182.63,182.57,0.7]
[1761860832339,3.51538555,182.62,182.57,0.7]
[1761860833117,8.99144803,182.62,182.57,0.7]
[1761860835341,8.99144803,182.62,182.58,16.46949026]
[1761860835718,8.99144803,182.62,182.59,0.7]
[1761860836117,8.99144803,182.62,182.59,62.4]
[1761860836339,8.99144803,182.62,182.6,16.46949026]
[1761860836537,8.99144803,182.62,182.6,17.16949026]
[1761860836724,8.99144803,182.62,182.6,16.46949026]
[1761860836930,8.99144803,182.62,182.59,61.7]
[1761860837128,8.99144803,182.62,182.6,17.16949026]
[1761860837444,8.99144803,182.62,182.6,0.7]
[1761860837741,8.99144803,182.62,182.59,61.7]
[1761860837941,8.99144803,182.62,182.59,62.4]
[1761860838144,8.99144803,182.62,182.59,0.7]
[1761860839022,19.1634729,182.64,182.59,0.7]
[1761860839223,3.51538555,182.62,182.59,0.7]
[1761860839943,19.1634729,182.64,182.59,0.7]
[1761860840129,3.51538555,182.63,182.59,0.7]
[1761860840337,22.67885845,182.64,182.59,0.7]
[1761860840541,8.99063741,182.64,182.59,0.7]
[1761860841323,3.51538555,182.63,182.59,0.7]
[1761860841732,8.99095002,182.63,182.59,0.7]
[1761860841923,8.99095002,182.63,182.59,62.4]
[1761860842340,8.99095002,182.63,182.6,0.7]
[1761860843325,3.51538555,182.64,182.6,0.7]
[1761860844547,5.47555166,182.63,182.6,0.7]
[1761860845038,8.99093721,182.63,182.6,62.4]
[1761860845439,8.99093721,182.63,182.61,0.7]
[1761860846847,5.47555166,182.63,182.6,61.7]
[1761860847145,5.47555166,182.63,182.61,0.7]
[1761860847324,8.99093721,182.63,182.61,0.7]
[1761860848446,5.47555166,182.63,182.61,0.7]
[1761860848630,8.99093721,182.63,182.61,0.7]
[1761860850828,8.99093721,182.63,182.61,62.4]
[1761860851226,8.99093721,182.63,182.62,0.68]
[1761860852140,8.99093721,182.63,182.61,62.38]
[1761860855339,3.51538555,182.62,182.61,0.68]
[1761860857249,8.99123704,182.62,182.61,0.68]
[1761860859633,8.99123704,182.62,182.61,62.38]
[1761860860032,8.99123704,182.62,182.61,61.7]
[1761860860754,8.99123704,182.62,182.61,62.38]
[1761860863045,8.99123704,182.62,182.61,61.7]
[1761860863433,7.72563087,182.62,182.61,62.38]
[1761860864049,7.72563087,182.62,182.61,0.68]
[1761860865167,7.72563087,182.62,182.59,0.68]
[1761860865348,2.24977938,182.61,182.59,0.68]
[1761860865842,20.592,182.59,182.55,61.7]
[1761860866043,2.24977938,182.57,182.55,61.7]
[1761860866284,2.24977938,182.57,182.51,61.7]
[1761860866562,2.24977938,182.56,182.52,0.68]
[1761860867254,7.72743273,182.56,182.52,0.68]
[1761860867962,2.24977938,182.57,182.52,0.68]
[1761860869168,7.72732079,182.57,182.52,0.68]
[1761860869552,5.47754141,182.57,182.52,0.68]
[1761860873366,5.47754141,182.57,182.52,2.92977938]
[1761860873558,5.47754141,182.57,182.53,0.68]
[1761860874343,2.24977938,182.57,182.53,0.68]
[1761860874755,15.94240726,182.58,182.53,0.68]
[1761860874969,4.09985835,182.57,182.53,0.68]
[1761860875540,9.57725252,182.57,182.53,0.68]
[1761860875743,5.47739417,182.57,182.53,0.68]
[1761860877169,5.47739417,182.57,182.53,62.38]
[1761860877466,5.47739417,182.57,182.54,0.68]
[1761860878868,19.16967903,182.58,182.54,0.68]
[1761860879760,5.47705115,182.58,182.54,0.68]
[1761860879960,7.72683053,182.58,182.54,0.68]
[1761860882974,7.72683053,182.58,182.54,62.38]
[1761860883356,7.72683053,182.58,182.55,0.67]
[1761860883555,7.72683053,182.58,182.55,62.37]
[1761860884477,5.47705115,182.58,182.55,0.67]
[1761860886176,5.47675119,182.59,182.55,0.67]
[1761860886378,7.72653057,182.59,182.55,0.67]
[1761860886968,4.09689967,182.58,182.55,0.67]
[1761860887267,6.34667905,182.58,182.55,0.67]
[1761860887571,19.16862916,182.59,182.55,0.67]
[1761860887760,4.09689303,182.58,182.55,0.67]
[1761860888379,21.41840854,182.59,182.55,0.67]
[1761860888955,5.47735115,182.57,182.55,0.67]
[1761860895762,19.16862916,182.59,182.55,0.67]
[1761860895965,21.41840854,182.59,182.55,0.67]
[1761860896464,2.24977938,182.58,182.55,0.67]
[1761860897178,5.47733711,182.58,182.55,0.67]
[1761860897962,5.47733711,182.58,182.56,16.47310765]
[1761860898466,5.47733711,182.58,182.57,0.69]
[1761860898662,9.57666095,182.58,182.57,0.69]
[1761860899065,9.57666095,182.58,182.57,17.16310765]
[1761860901092,9.57770869,182.58,182.57,17.16310765]
[1761860901971,5.47733711,182.58,182.57,17.16310765]
[1761860902784,9.57886088,182.58,182.57,17.16310765]
[1761860906383,4.10152377,182.58,182.57,17.16310765]
[1761860906582,4.10499058,182.58,182.57,78.86310765]
[1761860906782,4.10499058,182.59,182.57,78.86310765]
[1761860906981,28.31852375,182.6,182.58,0.69]
[1761860907183,4.10496981,182.59,182.58,0.69]
[1761860908388,4.10496981,182.59,182.58,17.16129876]
[1761860913403,4.10734071,182.59,182.58,17.16129876]
[1761860914187,5.47658599,182.6,182.58,17.16129876]
[1761860914391,5.47658599,182.6,182.59,0.68]
[1761860914605,9.58332301,182.6,182.59,0.68]
[1761860914802,9.58332301,182.6,182.59,14.37027238]
[1761860915805,5.47658599,182.6,182.59,14.37027238]
[1761860917008,9.58339921,182.6,182.59,14.37027238]
[1761860917214,5.47555358,182.63,182.59,76.07027238]
[1761860917504,31.97951376,182.68,182.59,76.07027238]
[1761860917505,2.24977938,182.65,182.6,2.92977938]
[1761860918011,2.24977938,182.65,182.61,0.68]
[1761860918783,7.72478149,182.65,182.62,16.46587447]
[1761860919306,4.10623796,182.64,182.63,0.68]
[1761860920285,7.72478149,182.65,182.63,0.68]
[1761860920494,7.72478149,182.65,182.63,17.14587447]
[1761860920806,5.47500211,182.65,182.64,0.68]
[1761860921013,11.82645303,182.65,182.64,0.68]
[1761860921208,11.82645303,182.65,182.64,17.14587447]
[1761860923122,9.57667365,182.65,182.64,17.14587447]
[1761860923615,9.57266936,182.65,182.64,17.14587447]
[1761860923827,5.47500211,182.65,182.64,17.14587447]
[1761860924687,2.24977938,182.66,182.64,17.14587447]
[1761860924913,5.47442238,182.67,182.65,0.68]
[1761860925216,6.34634717,182.66,182.65,0.68]
[1761860925413,7.60936342,182.66,182.65,0.68]
[1761860925613,7.60936342,182.66,182.65,13.68516064]
[1761860926216,3.51379133,182.66,182.65,13.68516064]
[1761860926412,20.592,182.62,182.58,0.68]
[1761860926616,3.51379133,182.6,182.59,13.68516064]
[1761860927003,3.51379133,182.6,182.58,0.68]
[1761860927320,3.51379133,182.6,182.58,14.36516064]
[1761860927906,3.51379133,182.6,182.59,0.68]
[1761860928614,8.99024258,182.6,182.59,0.68]
[1761860928916,30.38082769,182.62,182.61,14.38250575]
[1761860929089,34.47711133,182.62,182.61,14.38250575]
[1761860930009,37.99090266,182.62,182.61,14.38250575]
[1761860930520,43.46675415,182.62,182.61,14.38250575]
[1761860931007,57.15638288,182.62,182.59,13.68516064]
[1761860931207,9.78882769,182.57,182.54,0.68]
[1761860931411,3.51379133,182.55,182.52,0.68]
[1761860931601,24.10579133,182.54,182.46,8.99437753]
[1761860931801,3.51379133,182.53,182.47,0.68]
[1761860932030,3.51379133,182.53,182.5,16.47763161]
[1761860932523,3.51379133,182.53,182.5,17.15763161]
[1761860932697,5.47885163,182.52,182.5,17.15763161]
[1761860933195,8.99264296,182.52,182.5,17.15763161]
[1761860933494,8.99264296,182.52,182.5,16.47763161]
[1761860933697,3.51379133,182.51,182.48,0.68]
[1761860934500,3.51379133,182.51,182.48,14.37667229]
[1761860935019,8.99299147,182.51,182.48,14.37667229]
[1761860935195,33.89461902,182.49,182.45,0.68]
[1761860935395,3.51379133,182.47,182.43,0.68]
[1761860935618,3.51379133,182.46,182.43,17.16396933]
[1761860935817,3.51379133,182.45,182.43,0.68]
[1761860936015,3.51379133,182.45,182.4,0.2]
[1761860936016,3.51379133,182.45,182.41,16.48578101]
[1761860936220,3.51379133,182.45,182.42,0.68]
[1761860936520,3.51379133,182.44,182.42,0.68]
[1761860936694,8.99511198,182.44,182.42,0.68]
[1761860937110,5.48132065,182.44,182.42,0.68]
[1761860937313,3.51379133,182.46,182.42,17.16578101]
[1761860937513,3.51379133,182.46,182.43,0.68]
[1761860938014,3.51379133,182.46,182.44,16.48487512]
[1761860938520,8.99444462,182.46,182.44,17.16487512]
[1761860939023,8.99444462,182.46,182.44,16.48487512]
[1761860939321,8.99444462,182.46,182.44,0.72]
[1761860939519,8.99444462,182.46,182.45,0.72]
[1761860940101,8.99444462,182.46,182.45,16.48396933]
[1761860940628,8.99444462,182.46,182.4,5.68244053]
[1761860940805,3.51379133,182.45,182.43,16.48396933]
[1761860941403,3.51379133,182.45,182.43,17.20396933]
[1761860941608,5.48065329,182.46,182.43,78.90396933]
[1761860941823,3.51379133,182.45,182.43,62.42]
[1761860942006,8.99444462,182.46,182.44,17.20396933]
[1761860942201,8.99444462,182.46,182.44,16.48396933]
[1761860942826,5.48035293,182.47,182.44,17.20396933]
[1761860943024,3.51379133,182.46,182.44,17.20396933]
[1761860943222,3.51379133,182.46,182.44,0.72]
[1761860943430,3.51379133,182.46,182.45,16.48396933]
[1761860944430,8.99444462,182.46,182.45,16.48396933]
[1761860948733,5.48035293,182.47,182.45,16.48396933]
[1761860948910,3.51379133,182.46,182.45,16.48396933]
[1761860949423,13.46820006,182.54,182.46,0.72]
[1761860949621,8.9923428,182.53,182.46,4.23379133]
[1761860950020,5.47855147,182.53,182.47,13.22613413]
[1761860950413,9.78882769,182.51,182.47,8.9923428]
[1761860950618,9.78882769,182.49,182.47,8.9923428]
[1761860950824,18.78267162,182.48,182.47,8.9923428]
[1761860951015,18.78267162,182.48,182.45,0.72]
[1761860951329,18.78267162,182.48,182.46,8.9923428]
[1761860951721,15.26888029,182.48,182.46,8.9923428]
[1761860952140,3.51379133,182.47,182.46,8.9923428]
[1761860953216,8.99414426,182.47,182.46,8.9923428]
[1761860953424,5.48035293,182.47,182.46,8.9923428]
[1761860955334,5.48035293,182.47,182.46,9.7123428]
[1761860956944,5.48035293,182.47,182.46,8.9923428]
[1761860957837,5.47975231,182.49,182.46,0.69]
[1761860958037,9.78882769,182.48,182.45,13.69908845]
[1761860958216,3.51379133,182.47,182.44,0.69]
[1761860959230,8.99443407,182.47,182.44,0.69]
[1761860961413,5.48064274,182.47,182.44,0.69]
[1761860965043,18.7826979,182.48,182.44,0.69]
[1761860966321,20.592,182.48,182.44,6.17122278]
[1761860966637,3.51379133,182.49,182.45,17.17125257]
[1761860967346,3.51379133,182.49,182.46,0.69]
[1761860968434,8.99324338,182.5,182.46,0.69]
[1761860971059,8.99324338,182.5,182.46,62.39]
[1761860971450,8.99324338,182.5,182.47,0.66]
[1761860976268,4.10553016,182.49,182.47,0.66]
[1761860976556,8.99324338,182.5,182.47,0.66]
[1761860976735,4.1056508,182.49,182.47,0.66]
[1761860977052,8.99324338,182.5,182.47,0.66]
[1761860977255,4.10597152,182.49,182.47,0.66]
[1761860977461,8.99324338,182.5,182.47,0.66]
[1761860977643,4.10765909,182.49,182.47,0.66]
[1761860977839,18.78198031,182.51,182.47,0.66]
[1761860978059,4.10765909,182.5,182.47,0.66]
[1761860978265,4.10895285,182.49,182.47,0.66]
[1761860978464,18.78198031,182.51,182.47,0.66]
[1761860978641,7.71219755,182.5,182.47,0.66]
[1761860978964,8.99273414,182.52,182.47,67.84032977]
[1761860979166,7.71198846,182.51,182.47,84.32067695]
[1761860979370,4.10888004,182.5,182.48,0.66]
[1761860979668,5.47862095,182.53,182.48,10.44882769]
[1761860979877,7.71233802,182.52,182.49,0.66]
[1761860980063,4.10918276,182.51,182.49,0.66]
[1761860980261,5.47862095,182.53,182.49,10.44882769]
[1761860980445,7.71103153,182.52,182.49,77.62844522]
[1761860980776,5.47825134,182.54,182.5,0.66]
[1761860980947,7.71062446,182.53,182.5,0.66]
[1761860981139,4.10834401,182.52,182.5,0.66]
[1761860981339,5.47825134,182.54,182.5,0.66]
[1761860981549,7.70924601,182.53,182.5,6.13825134]
[1761860981754,5.47802724,182.55,182.5,67.83825134]
[1761860981957,4.10723547,182.54,182.51,0.66]
[1761860982239,15.26619713,182.57,182.51,17.13672662]
[1761860982439,7.74844919,182.56,182.52,5.47885163]
[1761860982671,7.74844919,182.55,182.52,6.13885163]
[1761860982848,5.47736944,182.57,182.53,0.66]
[1761860983053,7.74822778,182.56,182.53,0.66]
[1761860983257,8.99054252,182.59,182.53,0.66]
[1761860983472,7.74290064,182.58,182.54,16.47401224]
[1761860983649,7.74290064,182.57,182.54,16.47401224]
[1761860983882,4.10298929,182.56,182.55,0.66]
[1761860984250,5.47675119,182.59,182.55,6.13790905]
[1761860984465,4.10094198,182.58,182.56,0.66]
[1761860984656,4.10094198,182.57,182.56,0.66]
[1761860984857,20.592,182.56,182.54,16.47401224]
[1761860985058,7.61507625,182.55,182.51,0.66]
[1761860985262,3.51379133,182.55,182.51,0.66]
[1761860985449,2.25157392,182.55,182.51,0.66]
[1761860985773,4.10083091,182.54,182.51,0.66]
[1761860986176,9.5790997,182.54,182.51,0.66]
[1761860986342,5.47826879,182.54,182.51,0.66]
[1761860987456,2.25157392,182.55,182.51,0.66]
[1761860987457,7.72961157,182.55,182.51,0.66]
[1761860989446,20.592,182.52,182.5,16.47401224]
[1761860989646,9.78882769,182.51,182.47,0.66]
[1761860990754,5.47945205,182.5,182.47,0.66]
[1761860993473,9.78882769,182.49,182.45,16.48125257]
[1761860993676,9.78882769,182.49,182.44,0.66]
[1761860995148,5.4800526,182.48,182.44,0.66]
[1761860995350,4.59711152,182.56,182.46,2.25157392]
[1761860995545,2.25157392,182.54,182.46,2.25157392]
[1761860995748,4.0998762,182.53,182.47,0.66]
[1761860995970,4.0998762,182.52,182.47,0.66]
[1761860996158,4.0998762,182.52,182.48,9.78882769]
[1761860996470,5.47795124,182.55,182.48,12.04040161]
[1761860996666,5.47795124,182.55,182.49,0.66]
[1761860997257,12.04040161,182.56,182.5,5.47945205]
[1761860997258,7.72928003,182.56,182.5,5.47945205]
[1761860997454,20.61185323,182.61,182.5,69.43102597]
[1761860997661,2.25157392,182.59,182.51,0.66]
[1761860997959,7.72802517,182.6,182.51,0.66]
[1761860998166,22.84357392,182.56,182.52,9.57473235]
[1761860998567,22.84357392,182.56,182.52,10.26473235]
[1761860998767,4.0971261,182.55,182.52,10.26473235]
[1761860999165,9.57525671,182.55,182.52,9.57473235]
[1761860999375,5.47813061,182.55,182.52,10.26473235]
[1761861000161,26.06971922,182.56,182.53,0.69]
[1761861000365,20.592,182.55,182.53,0.69]
[1761861000595,5.47771922,182.56,182.53,0.69]
[1761861001270,5.47735115,182.57,182.53,0.69]
[1761861001493,4.0968043,182.56,182.53,0.69]
[1761861002461,2.25157392,182.54,182.52,9.57473235]
[1761861002677,2.25157392,182.54,182.5,0.69]
[1761861002880,2.25157392,182.54,182.47,10.47882769]
[1761861003382,2.25157392,182.56,182.48,0.69]
[1761861003595,4.09696453,182.55,182.48,0.69]
[1761861003958,9.57496668,182.55,182.48,0.69]
[1761861004158,5.47800215,182.55,182.48,0.69]
[1761861006085,5.47800215,182.55,182.49,5.47975231]
[1761861006587,5.47800215,182.55,182.5,0.69]
[1761861006974,12.04040161,182.51,182.47,9.78882769]
[1761861007170,12.04040161,182.51,182.45,0.69]
[1761861007693,12.04040161,182.51,182.43,0.69]
[1761861008012,9.78882769,182.49,182.43,0.69]
[1761861008299,5.47920013,182.51,182.45,2.25157392]
[1761861008774,5.47920013,182.51,182.46,0.69]
[1761861008962,5.47889081,182.52,182.46,0.69]
[1761861009774,2.25157392,182.54,182.46,0.69]
[1761861009973,20.592,182.55,182.47,5.48035293]
[1761861010288,4.09894792,182.54,182.47,5.48035293]
[1761861010484,26.07001626,182.55,182.47,5.48035293]
[1761861010485,5.47801626,182.55,182.48,17.16672662]
[1761861010682,7.72926419,182.56,182.48,17.16672662]
[1761861010893,4.0992692,182.55,182.49,0.69]
[1761861011562,4.0992692,182.55,182.5,5.47945205]
[1761861011983,4.0992692,182.55,182.51,0.69]
[1761861012180,4.0992692,182.55,182.51,62.39]
[1761861012388,2.25157392,182.56,182.51,62.39]
[1761861012603,7.72918364,182.57,182.52,0.69]
[1761861012772,4.09965904,182.56,182.52,0.69]
[1761861013469,2.25157392,182.55,182.52,0.69]
[1761861013669,13.88871882,182.54,182.46,7.73221793]
[1761861013885,9.78882769,182.54,182.5,0.69]
[1761861014800,5.47825134,182.54,182.5,0.69]
[1761861015295,4.1007776,182.53,182.5,0.69]
[1761861016993,5.47885163,182.52,182.5,0.69]
[1761861017496,5.47885163,182.52,182.44,0.68]
[1761861017497,9.78882769,182.51,182.44,0.68]
[1761861017802,12.04040161,182.51,182.45,0.68]
[1761861019194,9.78882769,182.49,182.45,0.68]
[1761861019586,5.47945205,182.5,182.45,0.68]
[1761861020094,15.26800588,182.51,182.45,6.16089024]
[1761861020482,7.73041116,182.53,182.46,0.68]
[1761861020680,4.10209989,182.52,182.46,0.68]
[1761861021499,9.58119,182.52,182.46,6.16054798]
[1761861021678,5.47909011,182.52,182.46,6.16054798]
[1761861021908,4.60994977,182.6,182.49,20.592]
[1761861022192,11.58911497,182.63,182.49,20.592]
[1761861022193,4.10137435,182.59,182.51,20.592]
[1761861022378,4.60994977,182.65,182.5,21.272]
[1761861022572,4.10045286,182.64,182.54,2.25157392]
[1761861022774,4.10045286,182.63,182.55,0.68]
[1761861023091,4.10045286,182.62,182.55,0.68]
[1761861023277,10.46722277,182.69,182.55,6.15769186]
[1761861023600,4.09730226,182.68,182.55,6.15769186]
[1761861023812,11.33111337,182.69,182.55,6.15769186]
[1761861023813,2.25157392,182.63,182.56,0.68]
[1761861023976,13.88612995,182.67,182.56,0.68]
[1761861023977,9.78882769,182.67,182.56,0.68]
[1761861024302,2.25157392,182.64,182.56,2.93157392]
[1761861024501,5.857273,182.69,182.57,0.68]
[1761861024704,2.25157392,182.67,182.57,0.68]
[1761861024997,2.25157392,182.73,182.65,22.84357392]
[1761861025174,0.1,182.75,182.65,20.592]
[1761861025378,0.1,182.75,182.66,8.40619924]
[1761861025578,2.35157392,182.75,182.66,6.15462532]
[1761861025779,2.35157392,182.75,182.67,0.68]
[1761861025977,2.35157392,182.75,182.67,2.93157392]
[1761861026204,0.1,182.75,182.67,2.93157392]
[1761861026373,2.35157392,182.75,182.68,0.68]
[1761861026573,2.35157392,182.75,182.69,2.25157392]
[1761861026815,0.1,182.75,182.69,2.25157392]
[1761861027110,0.1,182.75,182.7,0.68]
[1761861027411,2.35157392,182.75,182.7,0.68]
[1761861027788,0.1,182.75,182.7,0.68]
[1761861028972,2.35157392,182.75,182.7,0.68]
[1761861029176,2.25157392,182.73,182.61,13.69019884]
[1761861029403,2.25157392,182.7,182.63,2.25157392]
[1761861029776,2.25157392,182.7,182.64,0.68]
[1761861030174,7.72486598,182.71,182.64,2.93157392]
[1761861030483,7.72486598,182.71,182.64,2.25157392]
[1761861030676,7.72486598,182.71,182.65,0.68]
[1761861032575,5.47329206,182.71,182.65,0.68]
[1761861032778,7.72486598,182.71,182.65,0.68]
[1761861033383,5.47329206,182.71,182.6,5.47644049]
[1761861033581,22.84357392,182.7,182.63,0.68]
[1761861033803,20.592,182.7,182.63,0.68]